[Event "Titled Tuesday Blitz December 20 Late 2022"]
[White "Berezin, Viktor"]
[Black "Sanchez, Robert"]
[WhiteFideId "14107872"]
[BlackFideId "2034360"]
[WhiteElo "2310"]
[BlackElo "2379"]
[Result "1-0"]
[Round "08"]
[TimeControl "180+1"]
[Date "2022.12.21"]
[WhiteClock "0:01:30"]
[BlackClock "0:00:11"]

1. d4 {[%clk 0:03:00]}  d5 {[%clk 0:02:57]} 2. c4 {[%clk 0:03:00]}  e6 {[%clk 0:02:58]} 3. Nf3 {[%clk 0:03:00]}  Nf6 {[%clk 0:02:58]} 4. g3 {[%clk 0:03:01]}  Be7 {[%clk 0:02:58]} 5. Bg2 {[%clk 0:03:01]}  O-O {[%clk 0:02:59]} 6. O-O {[%clk 0:03:02]}  c6 {[%clk 0:02:59]} 7. Nc3 {[%clk 0:03:01]}  Nbd7 {[%clk 0:02:59]} 8. Qc2 {[%clk 0:03:00]}  a6 {[%clk 0:02:57]} 9. e4 {[%clk 0:03:01]}  dxc4 {[%clk 0:02:54]} 10. a4 {[%clk 0:03:00]}  a5 {[%clk 0:02:32]} 11. Rd1 {[%clk 0:02:59]}  Nb6 {[%clk 0:02:32]} 12. h3 {[%clk 0:02:58]}  Bd7 {[%clk 0:02:25]} 13. Be3 {[%clk 0:02:59]}  Rc8 {[%clk 0:02:20]} 14. Qe2 {[%clk 0:03:00]}  Bb4 {[%clk 0:02:16]} 15. Ne5 {[%clk 0:02:58]}  Qe7 {[%clk 0:01:51]} 16. Nxc4 {[%clk 0:02:56]}  Nxc4 {[%clk 0:01:51]} 17. Qxc4 {[%clk 0:02:57]}  c5 {[%clk 0:01:49]} 18. d5 {[%clk 0:02:55]}  exd5 {[%clk 0:01:47]} 19. exd5 {[%clk 0:02:52]}  b6 {[%clk 0:01:32]} 20. Bf4 {[%clk 0:02:52]}  Rfe8 {[%clk 0:01:26]} 21. Rd2 {[%clk 0:02:43]}  h6 {[%clk 0:01:24]} 22. Re2 {[%clk 0:02:41]}  Qd8 {[%clk 0:01:24]} 23. Rae1 {[%clk 0:02:41]}  Bxa4 {[%clk 0:01:12]} 24. Rxe8+ {[%clk 0:02:25]}  Bxe8 {[%clk 0:01:13]} 25. d6 {[%clk 0:02:22]}  Bd7 {[%clk 0:01:10]} 26. Re7 {[%clk 0:02:18]}  Be6 {[%clk 0:00:54]} 27. Nd5 {[%clk 0:02:14]}  Nxd5 {[%clk 0:00:49]} 28. Bxd5 {[%clk 0:02:15]}  b5 {[%clk 0:00:39]} 29. Qe4 {[%clk 0:02:07]}  Bxd5 {[%clk 0:00:34]} 30. Qxd5 {[%clk 0:02:08]}  Qf8 {[%clk 0:00:33]} 31. d7 {[%clk 0:01:47]}  Rd8 {[%clk 0:00:31]} 32. Bd6 {[%clk 0:01:48]}  c4 {[%clk 0:00:28]} 33. Bxb4 {[%clk 0:01:39]}  axb4 {[%clk 0:00:27]} 34. Qe5 {[%clk 0:01:39]}  Kh7 {[%clk 0:00:11]} 35. Re8 {[%clk 0:01:37]}  f6 {[%clk 0:00:11]} 36. Rxf8 {[%clk 0:01:31]}  fxe5 {[%clk 0:00:11]} 37. Rxd8 {[%clk 0:01:30]} 1-0


[Site "https://www.chess.com"]

[Event "Titled Tuesday Blitz December 20 Late 2022"]
[White "Bilan, Danila"]
[Black "Ibadov, Dashgyn"]
[WhiteFideId "24161918"]
[BlackFideId "24107514"]
[WhiteElo "2182"]
[BlackElo "2208"]
[Result "1/2-1/2"]
[Round "08"]
[TimeControl "180+1"]
[Date "2022.12.21"]
[WhiteClock "0:00:18"]
[BlackClock "0:00:05"]

1. d4 {[%clk 0:03:00]}  d5 {[%clk 0:02:57]} 2. Nf3 {[%clk 0:03:01]}  Nf6 {[%clk 0:02:57]} 3. c4 {[%clk 0:03:01]}  c6 {[%clk 0:02:56]} 4. Nc3 {[%clk 0:03:00]}  e6 {[%clk 0:02:56]} 5. Bg5 {[%clk 0:03:00]}  Nbd7 {[%clk 0:02:55]} 6. cxd5 {[%clk 0:02:59]}  exd5 {[%clk 0:02:55]} 7. e3 {[%clk 0:03:00]}  Be7 {[%clk 0:02:54]} 8. Bd3 {[%clk 0:03:00]}  O-O {[%clk 0:02:53]} 9. Qc2 {[%clk 0:02:59]}  Re8 {[%clk 0:02:49]} 10. O-O {[%clk 0:02:58]}  Nf8 {[%clk 0:02:47]} 11. Rab1 {[%clk 0:02:58]}  g6 {[%clk 0:02:45]} 12. b4 {[%clk 0:02:54]}  a6 {[%clk 0:02:45]} 13. a4 {[%clk 0:02:54]}  Ne6 {[%clk 0:02:42]} 14. Bh4 {[%clk 0:02:46]}  Ng7 {[%clk 0:02:33]} 15. b5 {[%clk 0:02:46]}  axb5 {[%clk 0:02:34]} 16. axb5 {[%clk 0:02:45]}  Bf5 {[%clk 0:02:25]} 17. bxc6 {[%clk 0:02:45]}  bxc6 {[%clk 0:02:19]} 18. Bxf5 {[%clk 0:02:36]}  Nxf5 {[%clk 0:02:20]} 19. Bxf6 {[%clk 0:02:32]}  Bxf6 {[%clk 0:02:19]} 20. Na4 {[%clk 0:02:31]}  Rc8 {[%clk 0:01:35]} 21. Nc5 {[%clk 0:02:19]}  Nd6 {[%clk 0:01:34]} 22. Rfc1 {[%clk 0:02:10]}  Kg7 {[%clk 0:01:23]} 23. Nb7 {[%clk 0:02:04]}  Nxb7 {[%clk 0:01:16]} 24. Rxb7 {[%clk 0:02:05]}  Re7 {[%clk 0:01:16]} 25. Rb3 {[%clk 0:01:52]}  Rec7 {[%clk 0:01:14]} 26. Rc3 {[%clk 0:01:51]}  Qd6 {[%clk 0:01:05]} 27. g3 {[%clk 0:01:39]}  h5 {[%clk 0:00:54]} 28. h4 {[%clk 0:01:38]}  Be7 {[%clk 0:00:50]} 29. Kg2 {[%clk 0:01:28]}  c5 {[%clk 0:00:48]} 30. dxc5 {[%clk 0:01:26]}  Rxc5 {[%clk 0:00:49]} 31. Rxc5 {[%clk 0:01:25]}  Rxc5 {[%clk 0:00:50]} 32. Qxc5 {[%clk 0:01:21]}  Qxc5 {[%clk 0:00:51]} 33. Rxc5 {[%clk 0:01:22]}  Bxc5 {[%clk 0:00:52]} 34. Kf1 {[%clk 0:01:19]}  Kf6 {[%clk 0:00:51]} 35. Ke2 {[%clk 0:01:19]}  Ke6 {[%clk 0:00:47]} 36. Kd3 {[%clk 0:01:19]}  Bb6 {[%clk 0:00:46]} 37. Ng5+ {[%clk 0:01:13]}  Kf6 {[%clk 0:00:45]} 38. Nh3 {[%clk 0:01:05]}  Kf5 {[%clk 0:00:40]} 39. Nf4 {[%clk 0:01:01]}  Ke5 {[%clk 0:00:41]} 40. Ne2 {[%clk 0:00:56]}  Ba5 {[%clk 0:00:39]} 41. Nd4 {[%clk 0:00:56]}  Bb6 {[%clk 0:00:33]} 42. Nf3+ {[%clk 0:00:51]}  Kf5 {[%clk 0:00:33]} 43. Ng5 {[%clk 0:00:51]}  f6 {[%clk 0:00:33]} 44. Nf3 {[%clk 0:00:49]}  Kg4 {[%clk 0:00:31]} 45. Ne1 {[%clk 0:00:41]}  g5 {[%clk 0:00:26]} 46. hxg5 {[%clk 0:00:32]}  fxg5 {[%clk 0:00:27]} 47. Ke2 {[%clk 0:00:30]}  h4 {[%clk 0:00:18]} 48. gxh4 {[%clk 0:00:29]}  gxh4 {[%clk 0:00:19]} 49. Kf1 {[%clk 0:00:29]}  h3 {[%clk 0:00:19]} 50. Kg1 {[%clk 0:00:25]}  Bc7 {[%clk 0:00:11]} 51. Nd3 {[%clk 0:00:23]}  Kf5 {[%clk 0:00:09]} 52. Nb4 {[%clk 0:00:22]}  Ke4 {[%clk 0:00:09]} 53. f4 {[%clk 0:00:18]}  Bb6 {[%clk 0:00:07]} 54. Nxd5 {[%clk 0:00:17]}  Kxd5 {[%clk 0:00:06]} 55. Kh2 {[%clk 0:00:17]}  Bxe3 {[%clk 0:00:05]} 56. Kxh3 {[%clk 0:00:18]}  Bxf4 {[%clk 0:00:05]} 1/2-1/2


[Site "https://www.chess.com"]

[Event "Titled Tuesday Blitz December 20 Late 2022"]
[White "Bjelobrk, Igor"]
[Black "Silva, Miguel Antonio Neto"]
[WhiteFideId "4300726"]
[BlackFideId "1911929"]
[WhiteElo "2335"]
[BlackElo "2223"]
[Result "0-1"]
[Round "08"]
[TimeControl "180+1"]
[Date "2022.12.21"]
[WhiteClock "0:00:14"]
[BlackClock "0:00:27"]

1. Nf3 {[%clk 0:03:00]}  d5 {[%clk 0:02:58]} 2. g3 {[%clk 0:03:00]}  Nf6 {[%clk 0:02:58]} 3. Bg2 {[%clk 0:03:00]}  Bf5 {[%clk 0:02:58]} 4. c4 {[%clk 0:02:59]}  c6 {[%clk 0:02:56]} 5. Qb3 {[%clk 0:02:58]}  Qb6 {[%clk 0:02:55]} 6. d3 {[%clk 0:02:56]}  e6 {[%clk 0:02:41]} 7. Be3 {[%clk 0:02:53]}  Qxb3 {[%clk 0:02:40]} 8. axb3 {[%clk 0:02:52]}  a6 {[%clk 0:02:40]} 9. Nc3 {[%clk 0:02:51]}  Nbd7 {[%clk 0:02:36]} 10. O-O {[%clk 0:02:47]}  h6 {[%clk 0:02:33]} 11. cxd5 {[%clk 0:02:34]}  exd5 {[%clk 0:02:19]} 12. Nd4 {[%clk 0:02:32]}  Bg6 {[%clk 0:02:18]} 13. Nc2 {[%clk 0:02:31]}  Bd6 {[%clk 0:02:15]} 14. b4 {[%clk 0:02:30]}  O-O {[%clk 0:02:15]} 15. Na4 {[%clk 0:02:18]}  Rfe8 {[%clk 0:02:13]} 16. Bh3 {[%clk 0:02:13]}  Re7 {[%clk 0:01:54]} 17. Rfe1 {[%clk 0:02:10]}  Rae8 {[%clk 0:01:45]} 18. Kf1 {[%clk 0:02:06]}  Ne5 {[%clk 0:01:44]} 19. Rad1 {[%clk 0:01:43]}  Neg4 {[%clk 0:01:39]} 20. Kg2 {[%clk 0:01:38]}  Nxe3+ {[%clk 0:01:37]} 21. fxe3 {[%clk 0:01:38]}  Nh7 {[%clk 0:01:22]} 22. Kf2 {[%clk 0:01:33]}  Ng5 {[%clk 0:01:21]} 23. Bg2 {[%clk 0:01:33]}  h5 {[%clk 0:01:20]} 24. Nc5 {[%clk 0:01:31]}  Ne6 {[%clk 0:01:16]} 25. Nb3 {[%clk 0:01:26]}  Nf8 {[%clk 0:01:11]} 26. Bh3 {[%clk 0:01:20]}  Nh7 {[%clk 0:01:11]} 27. Nc5 {[%clk 0:01:17]}  Ng5 {[%clk 0:01:06]} 28. Bg2 {[%clk 0:01:17]}  Ne6 {[%clk 0:01:05]} 29. Nb3 {[%clk 0:01:14]}  Ng5 {[%clk 0:01:02]} 30. h4 {[%clk 0:00:55]}  Nh7 {[%clk 0:01:02]} 31. Bh3 {[%clk 0:00:55]}  Nf6 {[%clk 0:01:02]} 32. Nc5 {[%clk 0:00:55]}  a5 {[%clk 0:00:58]} 33. Nb3 {[%clk 0:00:42]}  axb4 {[%clk 0:00:55]} 34. Ra1 {[%clk 0:00:39]}  c5 {[%clk 0:00:50]} 35. Red1 {[%clk 0:00:32]}  b6 {[%clk 0:00:46]} 36. Ra6 {[%clk 0:00:31]}  Bc7 {[%clk 0:00:46]} 37. Kf3 {[%clk 0:00:19]}  Nd7 {[%clk 0:00:36]} 38. Kf2 {[%clk 0:00:18]}  Ne5 {[%clk 0:00:36]} 39. Raa1 {[%clk 0:00:17]}  f5 {[%clk 0:00:33]} 40. Ra6 {[%clk 0:00:13]}  Ng4+ {[%clk 0:00:33]} 41. Bxg4 {[%clk 0:00:14]}  fxg4 {[%clk 0:00:33]} 42. Raa1 {[%clk 0:00:13]}  Rf8+ {[%clk 0:00:26]} 43. Kg2 {[%clk 0:00:13]}  Ref7 {[%clk 0:00:27]} 44. Rf1 {[%clk 0:00:13]}  Rxf1 {[%clk 0:00:27]} 45. Rxf1 {[%clk 0:00:13]}  Rxf1 {[%clk 0:00:27]} 46. Kxf1 {[%clk 0:00:14]}  Bxg3 {[%clk 0:00:27]} 0-1


[Site "https://www.chess.com"]

[Event "Titled Tuesday Blitz December 20 Late 2022"]
[White "Bluebaum, Matthias"]
[Black "Shimanov, Aleksandr"]
[WhiteFideId "24651516"]
[BlackFideId "4198603"]
[WhiteElo "2634"]
[BlackElo "2605"]
[Result "0-1"]
[Round "08"]
[TimeControl "180+1"]
[Date "2022.12.20"]
[WhiteClock "0:00:11"]
[BlackClock "0:00:12"]

1. d4 {[%clk 0:03:00]}  d5 {[%clk 0:02:56]} 2. c4 {[%clk 0:03:01]}  e6 {[%clk 0:02:56]} 3. Nc3 {[%clk 0:03:01]}  Nf6 {[%clk 0:02:57]} 4. cxd5 {[%clk 0:03:02]}  exd5 {[%clk 0:02:57]} 5. Bg5 {[%clk 0:03:02]}  c6 {[%clk 0:02:58]} 6. e3 {[%clk 0:03:02]}  Bf5 {[%clk 0:02:58]} 7. Nge2 {[%clk 0:03:02]}  h6 {[%clk 0:02:57]} 8. Bf4 {[%clk 0:03:02]}  Nbd7 {[%clk 0:02:54]} 9. Ng3 {[%clk 0:03:02]}  Be6 {[%clk 0:02:53]} 10. h4 {[%clk 0:03:02]}  Nb6 {[%clk 0:02:45]} 11. Bd3 {[%clk 0:03:02]}  Bd6 {[%clk 0:02:45]} 12. Bxd6 {[%clk 0:03:02]}  Qxd6 {[%clk 0:02:46]} 13. Qd2 {[%clk 0:03:03]}  O-O {[%clk 0:02:41]} 14. Nge2 {[%clk 0:03:03]}  Rfe8 {[%clk 0:02:26]} 15. f3 {[%clk 0:03:02]}  c5 {[%clk 0:02:17]} 16. Nb5 {[%clk 0:03:01]}  Qe7 {[%clk 0:02:17]} 17. dxc5 {[%clk 0:03:01]}  Qxc5 {[%clk 0:02:18]} 18. b3 {[%clk 0:02:39]}  Nc4 {[%clk 0:02:07]} 19. bxc4 {[%clk 0:02:35]}  dxc4 {[%clk 0:02:07]} 20. Nd6 {[%clk 0:02:32]}  Red8 {[%clk 0:02:06]} 21. Nxb7 {[%clk 0:02:31]}  Qe5 {[%clk 0:02:03]} 22. Nd4 {[%clk 0:01:54]}  Rxd4 {[%clk 0:01:02]} 23. Bh7+ {[%clk 0:01:54]}  Kxh7 {[%clk 0:01:02]} 24. Qxd4 {[%clk 0:01:55]}  Qg3+ {[%clk 0:01:02]} 25. Kf1 {[%clk 0:01:55]}  Bd5 {[%clk 0:00:59]} 26. Rh3 {[%clk 0:01:36]}  Qc7 {[%clk 0:00:54]} 27. Nc5 {[%clk 0:01:36]}  Rc8 {[%clk 0:00:53]} 28. Na4 {[%clk 0:01:25]}  c3 {[%clk 0:00:50]} 29. Rc1 {[%clk 0:01:25]}  c2 {[%clk 0:00:49]} 30. e4 {[%clk 0:01:26]}  Be6 {[%clk 0:00:49]} 31. Rh1 {[%clk 0:01:12]}  Qf4 {[%clk 0:00:39]} 32. Qb2 {[%clk 0:00:35]}  Ng4 {[%clk 0:00:39]} 33. Rh3 {[%clk 0:00:15]}  Qe3 {[%clk 0:00:15]} 34. Rxc2 {[%clk 0:00:14]}  Bc4+ {[%clk 0:00:15]} 35. Rxc4 {[%clk 0:00:15]}  Rxc4 {[%clk 0:00:16]} 36. fxg4 {[%clk 0:00:02]}  Rc1+ {[%clk 0:00:15]} 37. Qxc1 {[%clk 0:00:02]}  Qxc1+ {[%clk 0:00:16]} 38. Kf2 {[%clk 0:00:03]}  Qc2+ {[%clk 0:00:17]} 39. Kf3 {[%clk 0:00:04]}  Qxa4 {[%clk 0:00:17]} 40. Kf4 {[%clk 0:00:04]}  Qxa2 {[%clk 0:00:17]} 41. g5 {[%clk 0:00:05]}  a5 {[%clk 0:00:17]} 42. g6+ {[%clk 0:00:05]}  fxg6 {[%clk 0:00:17]} 43. h5 {[%clk 0:00:06]}  a4 {[%clk 0:00:15]} 44. Ke5 {[%clk 0:00:07]}  a3 {[%clk 0:00:15]} 45. Kd6 {[%clk 0:00:08]}  Qd2+ {[%clk 0:00:14]} 46. Kc7 {[%clk 0:00:08]}  a2 {[%clk 0:00:14]} 47. hxg6+ {[%clk 0:00:09]}  Kxg6 {[%clk 0:00:14]} 48. e5 {[%clk 0:00:10]}  a1=Q {[%clk 0:00:13]} 49. Rg3+ {[%clk 0:00:10]}  Kh7 {[%clk 0:00:13]} 50. Rxg7+ {[%clk 0:00:11]}  Kxg7 {[%clk 0:00:12]} 0-1


[Site "https://www.chess.com"]

[Event "Titled Tuesday Blitz December 20 Late 2022"]
[White "Boros, Denes"]
[Black "Horvath, Dominik"]
[WhiteFideId "722340"]
[BlackFideId "1642561"]
[WhiteElo "2464"]
[BlackElo "2405"]
[Result "1-0"]
[Round "08"]
[TimeControl "180+1"]
[Date "2022.12.20"]
[WhiteClock "0:00:57"]
[BlackClock "0:00:27"]

1. d4 {[%clk 0:03:00]}  d5 {[%clk 0:02:54]} 2. Nc3 {[%clk 0:03:01]}  Nf6 {[%clk 0:02:54]} 3. Nf3 {[%clk 0:03:01]}  Bf5 {[%clk 0:02:49]} 4. Nh4 {[%clk 0:03:01]}  Bg6 {[%clk 0:02:45]} 5. g3 {[%clk 0:03:01]}  e6 {[%clk 0:02:44]} 6. Bg2 {[%clk 0:03:01]}  c5 {[%clk 0:02:44]} 7. Nxg6 {[%clk 0:02:54]}  hxg6 {[%clk 0:02:44]} 8. O-O {[%clk 0:02:50]}  Nc6 {[%clk 0:02:44]} 9. dxc5 {[%clk 0:02:50]}  Bxc5 {[%clk 0:02:40]} 10. b3 {[%clk 0:02:47]}  Ng4 {[%clk 0:02:32]} 11. e3 {[%clk 0:02:38]}  Nxh2 {[%clk 0:02:28]} 12. Re1 {[%clk 0:02:38]}  f5 {[%clk 0:02:27]} 13. Na4 {[%clk 0:02:33]}  Bb4 {[%clk 0:02:21]} 14. Bd2 {[%clk 0:02:32]}  Bxd2 {[%clk 0:02:18]} 15. Qxd2 {[%clk 0:02:33]}  Ne5 {[%clk 0:02:05]} 16. Qe2 {[%clk 0:02:33]}  g5 {[%clk 0:01:50]} 17. f4 {[%clk 0:02:13]}  Nd7 {[%clk 0:01:12]} 18. c4 {[%clk 0:02:06]}  b5 {[%clk 0:01:05]} 19. cxd5 {[%clk 0:01:55]}  bxa4 {[%clk 0:01:05]} 20. dxe6 {[%clk 0:01:55]}  Nf6 {[%clk 0:00:55]} 21. Qb5+ {[%clk 0:01:43]}  Ke7 {[%clk 0:00:49]} 22. Rad1 {[%clk 0:01:29]}  Qc8 {[%clk 0:00:49]} 23. fxg5 {[%clk 0:01:20]}  Rb8 {[%clk 0:00:44]} 24. Qe5 {[%clk 0:01:09]}  Qxe6 {[%clk 0:00:27]} 25. gxf6+ {[%clk 0:01:01]}  Kf7 {[%clk 0:00:27]} 26. Qxe6+ {[%clk 0:00:57]}  Kxe6 {[%clk 0:00:27]} 27. fxg7 {[%clk 0:00:57]} 1-0


[Site "https://www.chess.com"]

[Event "Titled Tuesday Blitz December 20 Late 2022"]
[White "Bortnyk, Olexandr"]
[Black "Carlsen, Magnus"]
[WhiteFideId "14120828"]
[BlackFideId "1503014"]
[WhiteElo "2723"]
[BlackElo "2830"]
[Result "1-0"]
[Round "08"]
[TimeControl "180+1"]
[Date "2022.12.20"]
[WhiteClock "0:00:05"]
[BlackClock "0:00:09"]

1. e4 {[%clk 0:03:00]}  e5 {[%clk 0:02:57]} 2. Bc4 {[%clk 0:02:59]}  Nf6 {[%clk 0:02:56]} 3. d3 {[%clk 0:03:00]}  c6 {[%clk 0:02:56]} 4. Nf3 {[%clk 0:03:01]}  d5 {[%clk 0:02:57]} 5. Bb3 {[%clk 0:03:01]}  Bb4+ {[%clk 0:02:57]} 6. Bd2 {[%clk 0:03:02]}  Bxd2+ {[%clk 0:02:57]} 7. Qxd2 {[%clk 0:03:02]}  O-O {[%clk 0:02:50]} 8. Nc3 {[%clk 0:03:01]}  Re8 {[%clk 0:02:49]} 9. h3 {[%clk 0:02:57]}  a5 {[%clk 0:02:40]} 10. a3 {[%clk 0:02:54]}  Na6 {[%clk 0:02:37]} 11. O-O {[%clk 0:02:31]}  Nc5 {[%clk 0:02:37]} 12. exd5 {[%clk 0:02:32]}  Nxb3 {[%clk 0:02:36]} 13. cxb3 {[%clk 0:02:33]}  cxd5 {[%clk 0:02:30]} 14. Rfe1 {[%clk 0:02:25]}  d4 {[%clk 0:02:30]} 15. Nb5 {[%clk 0:02:17]}  Bd7 {[%clk 0:02:25]} 16. Nd6 {[%clk 0:02:16]}  Re6 {[%clk 0:02:19]} 17. Nc4 {[%clk 0:02:15]}  h6 {[%clk 0:01:55]} 18. Ncxe5 {[%clk 0:02:11]}  Be8 {[%clk 0:01:52]} 19. Qf4 {[%clk 0:02:05]}  Nd5 {[%clk 0:01:35]} 20. Qg4 {[%clk 0:01:45]}  Qf6 {[%clk 0:01:10]} 21. Qxd4 {[%clk 0:01:30]}  Rd8 {[%clk 0:01:10]} 22. Nc4 {[%clk 0:01:21]}  b6 {[%clk 0:01:07]} 23. Rxe6 {[%clk 0:01:17]}  Qxe6 {[%clk 0:01:07]} 24. Re1 {[%clk 0:01:15]}  Qc6 {[%clk 0:01:02]} 25. Qh4 {[%clk 0:01:01]}  Nf6 {[%clk 0:00:57]} 26. Nfe5 {[%clk 0:00:53]}  Qc7 {[%clk 0:00:54]} 27. a4 {[%clk 0:00:51]}  b5 {[%clk 0:00:51]} 28. axb5 {[%clk 0:00:52]}  Bxb5 {[%clk 0:00:52]} 29. Re3 {[%clk 0:00:51]}  Rd5 {[%clk 0:00:42]} 30. Ng4 {[%clk 0:00:46]}  Nxg4 {[%clk 0:00:41]} 31. Qxg4 {[%clk 0:00:47]}  Qd8 {[%clk 0:00:40]} 32. Qe4 {[%clk 0:00:40]}  Rd4 {[%clk 0:00:40]} 33. Qb7 {[%clk 0:00:34]}  Bd7 {[%clk 0:00:33]} 34. Qa7 {[%clk 0:00:30]}  Be6 {[%clk 0:00:29]} 35. Qxa5 {[%clk 0:00:28]}  Rxd3 {[%clk 0:00:30]} 36. Qxd8+ {[%clk 0:00:25]}  Rxd8 {[%clk 0:00:31]} 37. f3 {[%clk 0:00:21]}  Rd1+ {[%clk 0:00:30]} 38. Kf2 {[%clk 0:00:22]}  Rc1 {[%clk 0:00:30]} 39. Rc3 {[%clk 0:00:21]}  Rb1 {[%clk 0:00:28]} 40. Rc2 {[%clk 0:00:21]}  Bf5 {[%clk 0:00:27]} 41. Rd2 {[%clk 0:00:21]}  Be6 {[%clk 0:00:24]} 42. Ke3 {[%clk 0:00:21]}  Kf8 {[%clk 0:00:22]} 43. Kd4 {[%clk 0:00:21]}  Ke7 {[%clk 0:00:22]} 44. Kc5 {[%clk 0:00:21]}  Rc1 {[%clk 0:00:21]} 45. Kb5 {[%clk 0:00:16]}  g5 {[%clk 0:00:21]} 46. Na5 {[%clk 0:00:12]}  Bd7+ {[%clk 0:00:21]} 47. Kb6 {[%clk 0:00:10]}  Rc8 {[%clk 0:00:13]} 48. b4 {[%clk 0:00:09]}  Rb8+ {[%clk 0:00:14]} 49. Kc7 {[%clk 0:00:10]}  Rc8+ {[%clk 0:00:14]} 50. Kb7 {[%clk 0:00:11]}  Rc1 {[%clk 0:00:13]} 51. Kb6 {[%clk 0:00:10]}  Be8 {[%clk 0:00:09]} 52. b5 {[%clk 0:00:10]}  Kf6 {[%clk 0:00:10]} 53. Nc6 {[%clk 0:00:07]}  h5 {[%clk 0:00:10]} 54. Rd8 {[%clk 0:00:07]}  Re1 {[%clk 0:00:10]} 55. Kc7 {[%clk 0:00:07]}  Re2 {[%clk 0:00:09]} 56. b6 {[%clk 0:00:05]}  Bxc6 {[%clk 0:00:09]} 57. Rd6+ {[%clk 0:00:05]} 1-0


[Site "https://www.chess.com"]

[Event "Titled Tuesday Blitz December 20 Late 2022"]
[White "Burke, Paul"]
[Black "Antonio, Jorge Carlos"]
[WhiteFideId "2605767"]
[BlackFideId "113190"]
[WhiteElo "1779"]
[BlackElo "2247"]
[Result "0-1"]
[Round "08"]
[TimeControl "180+1"]
[Date "2022.12.21"]
[WhiteClock "0:00:42"]
[BlackClock "0:01:19"]

1. e4 {[%clk 0:03:00]}  c5 {[%clk 0:02:58]} 2. d4 {[%clk 0:03:00]}  cxd4 {[%clk 0:02:55]} 3. c3 {[%clk 0:03:00]}  dxc3 {[%clk 0:02:49]} 4. Nxc3 {[%clk 0:03:00]}  Nc6 {[%clk 0:02:47]} 5. Nf3 {[%clk 0:03:00]}  e6 {[%clk 0:02:46]} 6. Bf4 {[%clk 0:02:59]}  Bb4 {[%clk 0:02:45]} 7. Bd3 {[%clk 0:02:58]}  Bxc3+ {[%clk 0:02:40]} 8. bxc3 {[%clk 0:02:58]}  d6 {[%clk 0:02:39]} 9. Qe2 {[%clk 0:02:56]}  Nf6 {[%clk 0:02:38]} 10. Rd1 {[%clk 0:02:54]}  e5 {[%clk 0:02:35]} 11. Bg5 {[%clk 0:02:54]}  h6 {[%clk 0:02:32]} 12. Bh4 {[%clk 0:02:53]}  Be6 {[%clk 0:02:28]} 13. O-O {[%clk 0:02:44]}  O-O {[%clk 0:02:24]} 14. Bb5 {[%clk 0:02:43]}  a6 {[%clk 0:02:19]} 15. Bxc6 {[%clk 0:02:42]}  bxc6 {[%clk 0:02:18]} 16. Nxe5 {[%clk 0:02:42]}  Re8 {[%clk 0:02:08]} 17. Nxc6 {[%clk 0:02:37]}  Qc7 {[%clk 0:02:01]} 18. Bxf6 {[%clk 0:02:33]}  Qxc6 {[%clk 0:01:58]} 19. Bd4 {[%clk 0:02:28]}  f6 {[%clk 0:01:53]} 20. Qh5 {[%clk 0:02:19]}  Bxa2 {[%clk 0:01:47]} 21. Bxf6 {[%clk 0:02:11]}  Qxe4 {[%clk 0:01:40]} 22. Rd4 {[%clk 0:01:00]}  Qe6 {[%clk 0:01:30]} 23. Bh4 {[%clk 0:00:54]}  Bc4 {[%clk 0:01:25]} 24. Rxc4 {[%clk 0:00:46]}  Qxc4 {[%clk 0:01:24]} 25. Qf3 {[%clk 0:00:42]}  Qxh4 {[%clk 0:01:19]} 0-1


[Site "https://www.chess.com"]

[Event "Titled Tuesday Blitz December 20 Late 2022"]
[White "Carbone, Diego"]
[Black "Souleidis, Georgios"]
[WhiteFideId "3002179"]
[BlackFideId "4206827"]
[WhiteElo "2266"]
[BlackElo "2401"]
[Result "0-1"]
[Round "08"]
[TimeControl "180+1"]
[Date "2022.12.21"]
[WhiteClock "0:00:09"]
[BlackClock "0:00:15"]

1. d4 {[%clk 0:03:00]}  Nf6 {[%clk 0:02:59]} 2. c4 {[%clk 0:03:01]}  g6 {[%clk 0:02:59]} 3. g3 {[%clk 0:03:01]}  Bg7 {[%clk 0:02:59]} 4. Bg2 {[%clk 0:03:02]}  O-O {[%clk 0:03:00]} 5. Nc3 {[%clk 0:03:02]}  d6 {[%clk 0:03:00]} 6. Nf3 {[%clk 0:03:03]}  Nc6 {[%clk 0:03:00]} 7. O-O {[%clk 0:03:03]}  e5 {[%clk 0:02:59]} 8. dxe5 {[%clk 0:03:03]}  Nxe5 {[%clk 0:02:59]} 9. Nxe5 {[%clk 0:02:59]}  dxe5 {[%clk 0:03:00]} 10. Qxd8 {[%clk 0:02:59]}  Rxd8 {[%clk 0:03:01]} 11. Bg5 {[%clk 0:02:58]}  Rd7 {[%clk 0:02:52]} 12. Rfd1 {[%clk 0:02:42]}  c6 {[%clk 0:02:50]} 13. Na4 {[%clk 0:02:31]}  Rxd1+ {[%clk 0:02:40]} 14. Rxd1 {[%clk 0:02:32]}  Be6 {[%clk 0:02:40]} 15. b3 {[%clk 0:02:26]}  Nd7 {[%clk 0:02:37]} 16. Be3 {[%clk 0:02:25]}  Bf8 {[%clk 0:02:33]} 17. Kf1 {[%clk 0:01:53]}  Be7 {[%clk 0:02:26]} 18. Ke1 {[%clk 0:01:43]}  Kf8 {[%clk 0:02:25]} 19. Kd2 {[%clk 0:01:42]}  Ke8 {[%clk 0:02:09]} 20. f4 {[%clk 0:01:25]}  exf4 {[%clk 0:02:04]} 21. gxf4 {[%clk 0:01:24]}  Bb4+ {[%clk 0:01:37]} 22. Kc1 {[%clk 0:01:23]}  Bg4 {[%clk 0:01:22]} 23. Bd2 {[%clk 0:01:12]}  Ba3+ {[%clk 0:01:01]} 24. Kc2 {[%clk 0:01:10]}  Rd8 {[%clk 0:00:48]} 25. Bc3 {[%clk 0:01:05]}  Be7 {[%clk 0:00:37]} 26. Ba5 {[%clk 0:00:37]}  Rc8 {[%clk 0:00:34]} 27. Rd2 {[%clk 0:00:31]}  Nc5 {[%clk 0:00:26]} 28. Nxc5 {[%clk 0:00:30]}  Bxc5 {[%clk 0:00:27]} 29. Bf3 {[%clk 0:00:14]}  Bxf3 {[%clk 0:00:25]} 30. exf3 {[%clk 0:00:15]}  Ke7 {[%clk 0:00:23]} 31. Re2+ {[%clk 0:00:15]}  Kd7 {[%clk 0:00:22]} 32. Bc3 {[%clk 0:00:15]}  Re8 {[%clk 0:00:22]} 33. Rxe8 {[%clk 0:00:13]}  Kxe8 {[%clk 0:00:22]} 34. Kd3 {[%clk 0:00:14]}  f5 {[%clk 0:00:20]} 35. Be5 {[%clk 0:00:13]}  Kd7 {[%clk 0:00:20]} 36. h3 {[%clk 0:00:12]}  a6 {[%clk 0:00:20]} 37. Kc3 {[%clk 0:00:11]}  Bf2 {[%clk 0:00:16]} 38. Bd4 {[%clk 0:00:09]}  Bg3 {[%clk 0:00:16]} 39. Be5 {[%clk 0:00:09]}  g5 {[%clk 0:00:15]} 0-1


[Site "https://www.chess.com"]

[Event "Titled Tuesday Blitz December 20 Late 2022"]
[White "Clawitter, Craig"]
[Black "Myers, Dominique"]
[WhiteFideId "2023105"]
[BlackFideId "2041715"]
[WhiteElo "2215"]
[BlackElo "1953"]
[Result "1-0"]
[Round "08"]
[TimeControl "180+1"]
[Date "2022.12.21"]
[WhiteClock "0:02:01"]
[BlackClock "0:02:32"]

1. e4 {[%clk 0:02:57]}  e5 {[%clk 0:02:58]} 2. Nf3 {[%clk 0:02:57]}  Qe7 {[%clk 0:02:57]} 3. Nc3 {[%clk 0:02:54]}  c6 {[%clk 0:02:58]} 4. d4 {[%clk 0:02:54]}  d6 {[%clk 0:02:58]} 5. a4 {[%clk 0:02:49]}  h6 {[%clk 0:02:57]} 6. g3 {[%clk 0:02:44]}  g5 {[%clk 0:02:56]} 7. h3 {[%clk 0:02:43]}  Bg7 {[%clk 0:02:56]} 8. Bg2 {[%clk 0:02:43]}  Nd7 {[%clk 0:02:54]} 9. O-O {[%clk 0:02:43]}  Ngf6 {[%clk 0:02:54]} 10. Re1 {[%clk 0:02:38]}  O-O {[%clk 0:02:53]} 11. b3 {[%clk 0:02:28]}  a5 {[%clk 0:02:53]} 12. dxe5 {[%clk 0:02:24]}  Nxe5 {[%clk 0:02:51]} 13. Nd4 {[%clk 0:02:24]}  Rd8 {[%clk 0:02:51]} 14. Ba3 {[%clk 0:02:13]}  Be6 {[%clk 0:02:39]} 15. f4 {[%clk 0:02:08]}  gxf4 {[%clk 0:02:37]} 16. gxf4 {[%clk 0:02:08]}  Ne8 {[%clk 0:02:32]} 17. fxe5 {[%clk 0:02:02]}  dxe5 {[%clk 0:02:32]} 18. Bxe7 {[%clk 0:02:01]} 1-0


[Site "https://www.chess.com"]